bitfinex/quotes_ETHUSD_20220309
["timestamp","ask_amount","ask_price","bid_price","bid_amount"]
[1646840798622,0.04869034,2763.7,2762.8,3.78492616]
[1646840798824,0.34869034,2763.7,2762.8,3.78492616]
[1646840799026,0.00348066,2763.4,2762.8,3.70504]
[1646840799223,0.00348066,2763.4,2762.9,0.07958128]
[1646840799622,1.05300374,2763.3,2762.9,0.07958128]
[1646840799828,3.5,2763.2,2762.7,0.029168]
[1646840800027,1.21579789,2762.8,2762.7,0.029168]
[1646840800226,2.12110189,2762.8,2762.6,0.08520115]
[1646840800764,1.21579789,2762.8,2762.6,0.08520115]
[1646840800967,0.00348066,2763.3,2762.6,0.08520115]
[1646840801168,1.8103977,2763.5,2762.7,0.07448864]
[1646840801371,4.50096,2763.6,2762.7,0.10365664]
[1646840801372,0.00348066,2762.8,2762.7,0.10365664]
[1646840801979,0.00348066,2762.8,2762.7,1.96735615]
[1646840802377,3.60096,2763.5,2763.0,1.26925]
[1646840802676,3.6,2763.5,2762.7,1.52836751]
[1646840802871,3.6,2763.5,2762.7,0.029168]
[1646840803070,0.92557392,2763.3,2762.8,1.49924682]
[1646840803277,5.4103444,2763.5,2762.9,0.08830599]
[1646840803577,0.00096,2763.8,2763.4,2.8]
[1646840803776,0.00096,2764.1,2763.5,4.32839684]
[1646840803972,3.5,2764.8,2763.7,0.11363296]
[1646840803973,0.00096,2764.3,2763.7,0.11363296]
[1646840804177,2.89869549,2765.1,2763.5,0.029168]
[1646840804178,0.2,2764.6,2763.5,0.029168]
[1646840804374,0.2,2764.6,2763.3,0.029168]
[1646840804375,0.2,2764.2,2763.3,0.029168]
[1646840804621,0.2,2764.2,2763.1,0.029168]
[1646840804622,0.04338304,2764.1,2763.1,0.029168]
[1646840804822,3.54434304,2764.1,2763.2,1.49918572]
[1646840805021,0.04389136,2764.0,2763.2,1.49918572]
[1646840805220,0.04389136,2764.0,2763.3,0.029168]
[1646840805422,0.04389136,2764.0,2763.4,1.49918572]
[1646840805621,0.99889657,2763.8,2763.4,1.49918572]
[1646840805823,0.04389136,2764.0,2763.4,1.49918572]
[1646840806121,0.9050642,2763.9,2763.4,1.49918572]
[1646840806323,0.00116129,2763.8,2763.5,0.029168]
[1646840806522,0.00116129,2763.8,2763.6,1.49918572]
[1646840806727,0.00116129,2763.8,2763.7,0.08002744]
[1646840807122,0.9049769,2763.9,2763.5,0.029168]
[1646840807325,0.9049769,2763.9,2763.6,1.49910687]
[1646840807722,0.9049769,2763.9,2763.5,0.029168]
[1646840807926,0.3,2763.8,2763.1,0.029168]
[1646840808125,1.8102616,2763.9,2763.2,4.29921565]
[1646840808376,0.00096,2764.3,2763.3,1.52838365]
[1646840808579,0.445,2764.3,2763.6,0.029168]
[1646840808781,0.0500556,2764.2,2763.3,0.029168]
[1646840808979,0.445,2764.1,2763.3,0.029168]
[1646840809178,1.12454032,2763.6,2763.3,0.029168]
[1646840809386,2.02962852,2763.6,2763.3,0.029168]
[1646840809578,2.02962852,2763.6,2763.4,1.49912658]
[1646840809780,1.12454032,2763.6,2763.4,1.49912658]
[1646840809979,0.05414494,2764.2,2763.4,1.49912658]
[1646840810180,0.5,2764.3,2763.5,0.029168]
[1646840810381,1.81032,2764.0,2763.5,0.029168]
[1646840810582,0.9049809,2763.9,2763.5,0.029168]
[1646840810783,0.3,2763.8,2763.5,0.029168]
[1646840810982,0.3,2763.8,2763.3,0.029168]
[1646840810983,1.2063972,2763.7,2763.3,0.029168]
[1646840811183,1.2063972,2763.7,2763.4,1.49916874]
[1646840811381,1.2063972,2763.7,2763.3,0.029168]
[1646840812017,1.6513972,2763.7,2763.3,0.02312286]
[1646840812216,3.4618333,2763.7,2763.3,0.02312286]
[1646840812522,0.00386755,2763.6,2763.3,0.02312286]
[1646840812717,0.30386755,2763.6,2763.3,0.02312286]
[1646840813316,0.3,2763.6,2763.3,0.02312286]
[1646840813520,0.30116266,2763.6,2763.3,0.02312286]
[1646840813721,0.00116266,2763.6,2763.3,0.02312286]
[1646840813921,3.6,2763.9,2763.6,0.00232531]
[1646840814719,1.16416197,2763.8,2763.6,0.00232531]
[1646840814921,2.06915777,2763.8,2763.6,0.00232531]
[1646840815970,2.07302242,2763.8,2763.6,0.00232531]
[1646840816570,0.3,2763.7,2763.6,0.00232531]
[1646840816771,3.8,2763.7,2763.6,0.00232531]
[1646840816971,4.245,2763.7,2763.6,0.00232531]
[1646840817178,5.245,2763.7,2763.6,0.00232531]
[1646840817375,6.0,2763.6,2762.6,0.0798987]
[1646840817573,17.28013,2763.7,2762.7,1.49929363]
[1646840817574,3.945,2763.5,2762.7,1.49929363]
[1646840817773,3.945,2763.5,2762.5,2.8]
[1646840817774,1.18005612,2762.8,2762.5,2.8]
[1646840817980,1.18005612,2762.8,2762.6,1.49928487]
[1646840818174,1.18005612,2762.8,2762.7,1.49928487]
[1646840818573,1.62505612,2762.8,2762.7,1.49928487]
[1646840818772,6.33038712,2762.8,2762.0,0.07409126]
[1646840819172,6.33038712,2762.8,2761.8,5.12019086]
[1646840819173,1.92505612,2762.8,2761.8,5.12019086]
[1646840819375,2.92505612,2762.8,2761.8,5.12019086]
[1646840819617,2.92505612,2762.8,2761.8,2.24879927]
[1646840819618,0.2,2762.6,2761.8,2.24879927]
[1646840819845,1.13932318,2761.9,2761.4,0.62607809]
[1646840820221,1.43932318,2761.9,2761.3,0.62607809]
[1646840820422,1.43932318,2761.9,2761.2,0.62607809]
[1646840820423,5.38432318,2761.9,2761.2,0.62607809]
[1646840820621,1.81161,2761.8,2761.1,0.62607809]
[1646840820823,0.445,2761.7,2761.5,0.00432195]
[1646840821021,0.745,2761.7,2761.5,0.00432195]
[1646840821225,1.12100499,2761.6,2761.5,0.00432195]
[1646840821822,1.12100499,2761.6,2761.0,0.62607809]
[1646840822020,1.12100499,2761.6,2761.1,0.62607809]
[1646840822221,1.12100499,2761.6,2761.0,0.62607809]
[1646840822429,1.12100499,2761.6,2760.9,3.49643704]
[1646840822430,3.5,2761.5,2760.9,3.49643704]
[1646840822620,1.07095192,2761.1,2761.0,0.62607809]
[1646840822823,1.07095192,2761.1,2760.9,3.49643704]
[1646840823023,1.07095192,2761.1,2760.9,0.69643704]
[1646840823271,1.07095192,2761.1,2760.8,0.62607809]
[1646840823474,0.906,2761.0,2760.8,0.37607809]
[1646840824074,0.906,2761.0,2760.4,5.62140154]
[1646840824075,7.5454108,2760.9,2760.4,5.62140154]
[1646840824278,7.5454108,2760.9,2759.6,2.2494159]
[1646840824279,3.0,2760.5,2759.6,2.2494159]
[1646840824477,4.85137,2760.4,2760.3,0.01712559]
[1646840824676,2.71067,2760.4,2760.3,0.01712559]
[1646840824875,2.41067,2760.4,2760.3,0.01712559]
[1646840825275,1.8043,2760.4,2759.3,0.5]
[1646840825579,1.8043,2760.4,2759.4,0.06771478]
[1646840825778,0.00096,2760.8,2760.2,0.00428139]
[1646840825977,0.00096,2761.1,2760.2,0.00428139]
[1646840826175,0.445,2761.0,2760.2,0.00428139]
[1646840826377,5.75725,2760.9,2760.2,0.00428139]
[1646840826577,5.75725,2760.9,2759.2,0.06261842]
[1646840826578,2.92549389,2760.8,2759.2,0.06261842]
[1646840826781,0.3,2760.0,2759.0,0.13819997]
[1646840827022,0.49821222,2759.9,2759.0,0.13819997]
[1646840827222,0.05931112,2759.8,2759.0,0.13819997]
[1646840827632,0.00096,2760.1,2759.0,0.40111574]
[1646840827931,0.0480768,2760.3,2759.0,0.13819997]
[1646840827932,0.99818698,2759.6,2759.0,0.13819997]
[1646840828129,2.81116418,2759.6,2758.8,0.08070374]
[1646840828325,2.81116418,2759.6,2759.3,0.00432145]
[1646840828326,4.00576418,2759.6,2759.3,0.00432145]
[1646840828726,2.19278698,2759.6,2759.3,0.00432145]
[1646840829127,2.63778698,2759.6,2758.8,0.08070374]
[1646840829329,2.33778698,2759.6,2758.8,0.08070374]
[1646840829528,1.89278698,2759.6,2758.8,0.08070374]
[1646840829729,0.445,2759.5,2758.8,0.08070374]
[1646840830964,0.445,2759.5,2758.6,7.24994814]
[1646840830965,0.04854376,2759.4,2758.6,7.24994814]
[1646840831169,0.445,2759.3,2758.6,7.24994814]
[1646840831369,0.04854376,2759.4,2758.7,0.0861578]
[1646840831565,0.745,2759.7,2758.7,0.0861578]
[1646840831766,0.05146317,2759.6,2758.7,0.0861578]
[1646840832576,3.5,2759.6,2758.7,0.0861578]
[1646840832773,0.0530281,2759.4,2758.6,5.3]
[1646840832967,0.445,2759.3,2759.0,0.00422805]
[1646840833169,0.05154647,2759.2,2759.0,0.00422805]
[1646840833368,0.445,2759.1,2759.0,0.00422805]
[1646840833967,3.5,2759.4,2758.6,5.0]
[1646840833968,0.05142572,2759.0,2758.6,5.0]
[1646840834168,0.05142572,2759.0,2758.9,0.00422816]
[1646840834368,3.99642572,2759.0,2758.9,0.00422816]
[1646840834816,1.49642572,2759.0,2758.9,0.00422816]
[1646840835215,0.49642572,2759.0,2758.6,5.0]
[1646840835422,0.05222603,2758.9,2758.8,0.00422827]
[1646840835617,0.49722603,2758.9,2758.8,0.00422827]
[1646840836022,3.0464399,2759.4,2758.8,0.00422827]
[1646840836223,2.0,2760.2,2758.8,0.00422827]
[1646840836224,0.00096,2759.8,2758.8,0.00422827]
[1646840836422,0.00096,2759.8,2758.6,5.0]
[1646840836423,0.04747341,2759.4,2758.6,5.0]
[1646840836624,14.67747341,2759.4,2758.6,5.0]
[1646840836821,1.19923014,2759.1,2758.7,0.00411703]
[1646840837023,0.05189212,2759.0,2758.7,0.00411703]
[1646840837623,0.05189212,2759.0,2758.6,5.0]
[1646840837821,0.05189212,2759.0,2758.7,0.00383877]
[1646840838275,0.35189212,2759.0,2758.7,0.00383877]
[1646840838667,0.05189212,2759.0,2758.7,0.00383877]
[1646840838868,0.21495626,2759.2,2758.6,5.0]
[1646840839068,0.21495626,2759.2,2758.7,0.00383877]
[1646840839871,0.21495626,2759.2,2758.6,5.0]
[1646840840272,0.21495626,2759.2,2758.8,0.00386079]
[1646840840472,1.3734372,2759.1,2758.8,0.00386079]
[1646840840676,0.04405412,2758.9,2758.8,0.00386079]
[1646840841172,0.04405412,2758.9,2758.6,5.0]
[1646840841372,0.04405412,2758.9,2758.7,0.00388628]
[1646840841871,11.17405412,2758.9,2758.7,0.00388628]
[1646840842126,15.075,2758.8,2758.7,0.00388628]
[1646840842324,15.075,2758.8,2758.6,5.0]
[1646840842527,0.04362647,2758.7,2758.6,5.0]
[1646840842729,0.04362647,2758.7,2758.2,0.01554765]
[1646840842730,0.3,2758.5,2758.2,0.01554765]
[1646840842929,0.71306825,2758.4,2758.2,4.765e-05]
[1646840843127,0.34900584,2758.3,2758.2,4.765e-05]
[1646840843335,0.04132288,2758.1,2757.3,0.3622]
[1646840843634,0.04132288,2758.1,2757.0,0.5]
[1646840843635,0.04197422,2757.9,2757.0,0.5]
[1646840843828,0.49353437,2757.8,2757.0,0.5]
[1646840844033,1.35359818,2758.0,2757.0,0.5]
[1646840844034,0.04599673,2757.7,2757.0,0.5]
[1646840844528,0.04599673,2757.7,2756.6,0.98175844]
[1646840844732,0.00096,2757.8,2757.1,0.08160718]
[1646840844931,0.00096,2758.0,2757.8,0.00233503]
[1646840845129,0.00096,2758.1,2757.8,0.00233503]
[1646840845327,0.029168,2758.5,2757.8,0.00233503]
[1646840845527,0.05222515,2758.3,2757.2,3.5]
[1646840845785,0.05222515,2758.3,2757.4,0.06800318]
[1646840846091,0.05222515,2758.3,2757.1,0.3]
[1646840846288,0.95929595,2758.3,2757.2,1.50171708]
[1646840846490,0.029168,2758.1,2757.0,1.81383]
[1646840846690,0.029168,2758.1,2757.0,2.11383]
[1646840846691,0.08659592,2758.1,2757.0,2.11383]
[1646840847091,0.97855299,2757.8,2756.8,0.9071]
[1646840847291,0.05129618,2757.7,2756.8,0.9071]
[1646840847496,0.05129618,2757.7,2756.9,0.90706]
[1646840847792,0.05129618,2757.7,2756.8,0.9071]
[1646840847793,0.029168,2757.6,2756.8,0.9071]
[1646840848193,0.029168,2757.6,2756.9,1.57362102]
[1646840848394,0.029168,2757.6,2757.0,2.40882495]
[1646840848597,0.029168,2757.6,2757.0,0.907]
[1646840848793,0.029168,2757.6,2757.2,0.07144999]
[1646840849835,0.029168,2757.6,2757.3,0.00313597]
[1646840850634,0.0619132,2757.4,2757.3,0.00313597]
[1646840850833,0.0619132,2757.4,2756.4,1.81426]
[1646840851035,0.029168,2757.3,2756.6,0.90714]
[1646840851240,0.029168,2757.3,2756.9,0.01254552]
[1646840852035,0.029168,2757.3,2756.6,0.07740973]
[1646840852236,0.029168,2757.3,2756.7,2.4090294]
[1646840852438,0.029168,2757.3,2757.0,0.00430748]
[1646840852636,0.05442771,2757.4,2757.0,0.00430748]
[1646840852839,3.65442771,2757.4,2757.0,0.00430748]
[1646840853138,3.65442771,2757.4,2757.0,0.07311784]
[1646840853139,3.6,2757.4,2757.0,0.07311784]
[1646840853372,0.39634826,2757.4,2757.1,1.57919952]
[1646840853571,0.39634826,2757.4,2757.2,1.56705606]
[1646840853780,0.39634826,2757.4,2757.3,0.07444045]
[1646840854075,0.029168,2757.9,2757.3,0.07444045]
[1646840854277,0.9069657,2758.6,2757.3,0.07444045]
[1646840854478,0.029168,2758.2,2757.3,0.07444045]
[1646840854677,0.029168,2758.2,2757.5,0.90693]
[1646840854875,0.029168,2758.2,2757.6,0.08403165]
[1646840855686,3.0,2758.9,2757.7,1.81341]
[1646840855978,0.029168,2758.5,2758.2,0.07703536]
[1646840856177,0.029168,2759.0,2758.2,0.07703536]
[1646840856577,0.029168,2759.0,2757.7,0.07504178]
[1646840856782,0.029168,2759.0,2758.2,3.62612]
[1646840857049,0.329168,2759.0,2758.2,0.08343754]
[1646840857236,0.04893883,2758.9,2758.1,0.0043088]
[1646840857437,0.029168,2759.0,2758.1,0.0043088]
[1646840857836,0.029168,2759.0,2758.1,0.9110188]
[1646840858037,0.029168,2759.0,2758.2,2.7723856]
[1646840858236,0.029168,2759.0,2758.2,0.90666]
[1646840858437,0.04319968,2759.8,2758.3,1.50117668]
[1646840858438,0.00096,2759.6,2758.3,1.50117668]
[1646840858640,0.04319968,2759.8,2758.3,1.50117668]
[1646840858641,0.029168,2759.4,2758.3,1.50117668]
[1646840858846,0.029168,2759.4,2758.5,2.96877]
[1646840859042,0.029168,2759.4,2758.8,0.3645]
[1646840859239,0.029168,2759.6,2759.0,0.3645]
[1646840859438,0.00096,2760.2,2759.2,0.3645]
[1646840859638,3.0,2760.3,2759.4,0.08453649]
[1646840859639,0.00390765,2759.9,2759.4,0.08453649]
[1646840859938,0.00390765,2759.9,2759.4,0.08765728]
[1646840860340,0.00390765,2759.9,2759.4,0.07972835]
[1646840860537,0.029168,2760.0,2759.5,0.90606]
[1646840860776,0.00390864,2759.9,2759.6,0.07105879]
[1646840861475,0.00390864,2759.9,2759.7,2.25964146]
[1646840861680,0.029168,2760.2,2759.8,0.07355472]
[1646840862180,0.05905254,2761.1,2759.8,0.07355472]
[1646840862181,0.00390878,2759.9,2759.8,0.07355472]
[1646840862385,0.007,2761.1,2760.2,0.90572]
[1646840862580,0.007,2761.1,2760.2,1.27022]
[1646840862581,0.029168,2760.9,2760.2,1.27022]
[1646840862784,0.029168,2760.9,2760.3,2.77065997]
[1646840862983,0.029168,2760.9,2760.2,2.71715]
[1646840862984,0.036168,2761.1,2760.5,0.3645]
[1646840863190,0.036168,2761.1,2760.6,1.86489991]
[1646840863381,0.036168,2761.1,2760.7,1.86489991]
[1646840863382,0.007,2761.1,2760.7,1.86489991]
[1646840863579,0.007,2761.1,2760.9,0.3645]
[1646840863780,0.007,2761.1,2761.0,1.50039991]
[1646840864185,0.007,2761.1,2760.4,4.3823]
[1646840864381,0.007,2761.1,2760.5,1.5003034]
[1646840864635,0.007,2761.1,2760.6,1.5003034]
[1646840864636,0.029168,2760.9,2760.6,1.5003034]
[1646840864936,0.029168,2760.9,2760.6,0.90584]
[1646840865129,0.0373473,2761.1,2760.7,0.90576]
[1646840865730,0.0011793,2760.9,2760.7,0.90576]
[1646840865931,0.0011793,2760.9,2760.6,0.90584]
[1646840866542,0.036168,2761.1,2760.6,0.90584]
[1646840866737,0.036168,2761.1,2760.6,1.81165]
[1646840866931,0.00389907,2760.9,2760.6,1.81165]
[1646840867335,0.00389907,2760.9,2760.5,0.3]
[1646840867533,0.00389907,2760.9,2760.3,1.81151]
[1646840867732,0.00389907,2760.9,2760.4,1.50039726]
[1646840867931,0.029168,2761.0,2760.4,1.50039726]
[1646840868131,0.00389907,2760.8,2760.4,1.50039726]
[1646840868971,0.029168,2761.0,2760.4,1.50039726]
[1646840869374,0.00389907,2760.7,2760.4,1.50039726]
[1646840870170,0.029168,2761.0,2760.4,1.50039726]
[1646840870376,0.007,2761.1,2760.5,0.90582]
[1646840870569,0.00389907,2760.7,2760.5,0.90582]
[1646840871371,0.029168,2760.9,2760.5,0.90582]
[1646840871372,0.029168,2760.9,2760.6,1.50033321]
[1646840871571,0.007,2761.1,2760.7,3.62258]
[1646840872034,0.007,2761.1,2760.7,3.92258]
[1646840872223,0.007,2761.1,2760.7,2.109291]
[1646840872423,0.007,2761.1,2760.8,1.50016383]
[1646840873025,0.00389907,2761.0,2760.8,3.31146383]
[1646840873223,0.00389907,2761.0,2760.7,0.3]
[1646840873423,0.03306707,2761.0,2760.7,0.3]
[1646840873622,0.03306707,2761.0,2760.5,0.90583]
[1646840873825,0.03306707,2761.0,2760.6,1.50032202]
[1646840874023,0.029168,2761.0,2760.6,1.50032202]
[1646840874323,0.00389907,2761.0,2760.6,1.50032202]
[1646840874722,0.00389907,2761.0,2760.5,0.90583]
[1646840875125,0.05613072,2761.5,2760.6,1.81151]
[1646840875323,0.00389907,2760.9,2760.6,1.81151]
[1646840876182,0.01696767,2761.4,2760.6,1.81151]
[1646840876385,0.01696767,2761.4,2760.7,0.90577]
[1646840876584,0.00389907,2760.9,2760.8,0.90576]
[1646840877192,0.00389907,2760.9,2760.8,1.20576]
[1646840877588,0.01696767,2761.4,2760.8,1.20576]
[1646840877789,0.3,2761.5,2760.9,0.07688058]
[1646840877989,0.3,2761.5,2760.8,1.20576]
[1646840878192,1.27795013,2761.7,2761.0,0.90572]
[1646840878387,0.05802048,2761.6,2761.0,0.90572]
[1646840878590,0.05802048,2761.6,2761.0,1.20572]
[1646840879924,0.05802048,2761.6,2760.9,1.81144]
[1646840880127,0.00116972,2761.4,2760.3,0.07560167]
[1646840880328,0.8095,2761.3,2760.0,3.6320154]
[1646840880525,3.55818476,2761.2,2760.0,3.6320154]
[1646840880724,0.50082606,2761.1,2760.0,3.6320154]
[1646840880924,0.50082606,2761.1,2760.2,0.9061]
[1646840880925,0.05703064,2760.9,2760.2,0.9061]
[1646840882531,0.91279652,2760.8,2760.2,0.9061]
[1646840882731,0.05522543,2760.7,2760.2,0.9061]
[1646840882931,0.05413326,2760.9,2760.2,0.9061]
[1646840883131,0.3,2760.8,2760.2,1.2061]
[1646840883372,0.05984665,2760.9,2760.2,1.2061]
[1646840883573,0.05594414,2760.9,2760.2,1.2061]
[1646840883775,0.3,2760.9,2760.2,1.2061]
[1646840883977,0.05082052,2760.8,2760.2,1.2061]
[1646840884573,0.05082052,2760.8,2760.2,0.3]
[1646840884574,0.35082052,2760.8,2760.2,0.3]
[1646840884775,0.35082052,2760.8,2760.2,1.5]
[1646840884979,0.35082052,2760.8,2760.2,1.2]
[1646840885375,1.2061074,2760.8,2760.2,1.2]
[1646840885576,1.17615583,2760.4,2760.2,1.2]
[1646840885779,1.47615583,2760.4,2760.2,1.2]
[1646840885976,0.0513972,2760.3,2760.2,1.2]
[1646840886377,5.7,2760.2,2760.0,0.0090954]
[1646840886583,0.50124014,2760.1,2760.0,0.0090954]
[1646840886780,0.50124014,2760.1,2760.0,9.54e-05]
[1646840887045,11.18624014,2760.1,2760.0,9.54e-05]
[1646840887234,1.3,2760.2,2760.0,9.54e-05]
[1646840887437,0.3,2760.2,2760.0,9.54e-05]
[1646840887836,0.0479541,2760.3,2760.0,0.9060954]
[1646840888035,0.0479541,2760.3,2760.0,9.54e-05]
[1646840888036,1.01595229,2760.2,2760.0,9.54e-05]
[1646840888235,0.0505466,2760.1,2760.0,9.54e-05]
[1646840888640,11.1805466,2760.1,2760.0,9.54e-05]
[1646840888834,11.1805466,2760.1,2758.7,0.3624]
[1646840888835,11.13,2759.9,2758.7,0.3624]
[1646840889034,11.99456936,2759.8,2758.4,0.006503]
[1646840889235,11.99456936,2759.8,2758.5,1.50101699]
[1646840889236,0.88824241,2759.4,2758.5,1.50101699]
[1646840889437,0.04759382,2759.6,2758.5,4.46996699]
[1646840889636,1.30096,2759.8,2758.6,1.56728912]
[1646840889836,0.05796752,2759.7,2758.7,1.50101699]
[1646840890036,0.05796752,2759.7,2759.0,0.00424215]
[1646840890244,0.05796752,2759.7,2759.0,0.91067215]
[1646840890638,0.48848193,2759.8,2759.0,0.91067215]
[1646840890639,0.05455304,2759.5,2759.0,0.91067215]
[1646840890879,0.3,2759.6,2759.0,0.90643]
[1646840891081,0.05066142,2759.5,2759.0,0.91067221]
[1646840891685,0.05682111,2759.9,2759.1,0.08295367]
[1646840891886,1.0,2760.2,2759.1,0.08295367]
[1646840891887,0.00096,2760.2,2759.5,0.3645]
[1646840892087,1.32113167,2761.0,2759.6,0.08442376]
[1646840892088,0.00096,2760.3,2759.6,0.08442376]
[1646840892290,0.00096,2760.5,2759.6,0.08442376]
[1646840892488,0.02209154,2761.0,2759.7,2.11489234]
[1646840892692,0.02209154,2761.0,2759.9,3.08162]
[1646840892693,0.02113154,2761.0,2759.9,3.08162]
[1646840892892,0.00363054,2761.0,2760.2,0.3645]
[1646840893090,0.00096,2761.7,2760.6,0.3645]
[1646840893287,7.41170356,2762.1,2760.6,0.3645]
[1646840893288,0.00096,2762.0,2760.8,0.3645]
[1646840893489,0.00096,2762.1,2761.0,0.3645]
[1646840893689,0.017501,2762.4,2761.3,0.08250426]
[1646840893887,1.0461612,2762.3,2761.4,0.90547]
[1646840894190,0.05536983,2762.2,2761.4,1.20547]
[1646840894628,0.05536983,2762.2,2761.4,0.3]
[1646840894829,0.05536983,2762.2,2761.1,0.029168]
[1646840895030,0.05536983,2762.2,2761.2,0.90564]
[1646840895828,0.05536983,2762.2,2761.1,0.329168]
[1646840896229,0.05536983,2762.2,2761.1,0.029168]
[1646840897032,0.00116825,2761.8,2761.1,0.029168]
[1646840897234,0.05749356,2761.7,2761.1,0.029168]
[1646840897835,1.25255526,2761.8,2761.7,0.11498711]
[1646840898041,1.25138701,2761.8,2761.7,0.11498711]
[1646840899082,0.3,2761.8,2761.7,0.11498711]
[1646840899281,0.23407501,2762.4,2761.7,0.11498711]
[1646840899481,0.00388511,2761.9,2761.7,0.11498711]
[1646840900482,1.18729741,2762.2,2761.7,0.11498711]
[1646840900691,0.00388511,2761.9,2761.7,0.11498711]
[1646840901680,2.09297781,2762.2,2761.7,0.11498711]
[1646840901881,0.00388511,2761.9,2761.7,0.11498711]
[1646840902630,0.30388511,2761.9,2761.7,0.11498711]
[1646840902831,0.3,2761.9,2761.7,0.10895446]
[1646840903033,6.0,2761.8,2761.1,0.029168]
[1646840903238,7.3645,2761.8,2760.5,0.029168]
[1646840903433,1.08513951,2761.0,2760.6,1.50015025]
[1646840903631,0.445,2761.5,2760.6,1.50015025]
[1646840903836,0.3,2761.0,2760.6,1.50015025]
[1646840904334,1.35194,2761.5,2760.6,1.50015025]
[1646840904533,0.9126899,2761.0,2760.6,1.50015025]
[1646840904732,1.2126899,2761.0,2760.6,1.50015025]
[1646840905238,13.2488231,2761.0,2760.1,0.029168]
[1646840905433,2.1188231,2761.0,2760.2,1.50040376]
[1646840905633,2.2126899,2761.0,2760.2,1.50040376]
[1646840905880,1.2126899,2761.0,2760.2,1.50040376]
[1646840906076,0.3,2761.0,2760.2,1.50040376]
[1646840906276,0.00388482,2761.1,2760.2,1.50040376]
[1646840906473,0.3,2761.2,2760.2,1.50040376]
[1646840906876,0.00388454,2761.1,2760.3,1.58752181]
[1646840907081,0.00388454,2761.1,2760.4,1.50040376]
[1646840907683,0.3,2761.2,2760.4,1.50040376]
[1646840907881,1.8122432,2761.0,2760.4,1.50040376]
[1646840908080,1.36979707,2760.9,2760.4,1.50040376]
[1646840908281,0.04481168,2760.8,2760.2,1.50040376]
[1646840908486,0.04481168,2760.8,2760.3,1.50040376]
[1646840908683,0.04481168,2760.8,2760.4,1.50040376]
[1646840908883,0.04481168,2760.8,2760.5,1.50040376]
[1646840909084,0.04481168,2760.8,2760.6,1.50040376]
[1646840909282,0.04481168,2760.8,2760.1,1.31003178]
[1646840909534,0.04481168,2760.8,2760.2,1.50029354]
[1646840910934,0.445,2761.0,2760.3,6.0]
[1646840911140,2.71861,2761.6,2760.5,0.08450438]
[1646840911141,0.00096,2761.3,2760.5,0.08450438]
[1646840911441,0.9060521,2761.5,2760.7,0.07823341]
[1646840911442,0.9070121,2761.5,2760.7,0.07823341]
[1646840911632,1.0708001,2761.5,2760.7,0.07823341]
[1646840911832,1.0708001,2761.5,2760.5,0.3]
[1646840912033,1.0708001,2761.5,2760.6,1.50027378]
[1646840912237,1.0708001,2761.5,2760.7,0.08748144]
[1646840912238,1.05788182,2761.4,2760.7,0.08748144]
[1646840912442,0.9062681,2761.0,2760.1,0.029168]
[1646840912638,0.49610985,2760.9,2760.2,1.50045216]
[1646840912838,0.64798167,2760.9,2760.2,1.50045216]
[1646840913038,0.94798167,2760.9,2760.2,1.50045216]
[1646840913282,1.19340924,2760.7,2760.2,1.50045216]
[1646840913678,1.19340924,2760.7,2760.3,0.07571138]
[1646840913679,1.44340924,2760.7,2760.3,0.07571138]
[1646840913873,1.44340924,2760.7,2760.4,1.50038906]
[1646840914072,0.25,2760.7,2760.5,0.08914329]
[1646840914273,0.15187182,2760.9,2760.5,0.08914329]
[1646840914471,0.15187182,2760.9,2760.3,0.07766512]
[1646840914674,0.15187182,2760.9,2760.5,0.08585752]
[1646840914873,0.15187182,2760.9,2760.1,1.235218]
[1646840915073,0.15187182,2760.9,2760.3,0.08397619]
[1646840915273,1.23255301,2760.8,2760.3,0.08397619]
[1646840915671,1.53255301,2760.8,2760.3,0.08397619]
[1646840917130,2.60454559,2760.8,2760.1,0.029168]
[1646840917329,3.60454559,2760.8,2760.2,1.50051664]
[1646840917530,3.60454559,2760.8,2760.1,0.11832401]
[1646840917729,3.60454559,2760.8,2760.1,0.029168]
[1646840918130,0.94582422,2760.2,2760.1,0.029168]
[1646840918329,2.73649258,2760.8,2760.4,0.65474953]
[1646840918330,1.1168641,2760.7,2760.4,0.65474953]
[1646840919133,0.445,2760.6,2760.4,0.65474953]
[1646840919332,0.9063,2760.5,2760.4,0.65474953]
[1646840919532,1.05925215,2760.5,2760.4,0.65474953]
[1646840919933,1.50425215,2760.5,2760.4,0.55474953]
[1646840922175,2.04747879,2760.5,2760.4,0.50474953]
[1646840923176,1.50425215,2760.5,2760.4,0.50474953]
[1646840923376,1.3513,2760.5,2760.4,0.50474953]
[1646840923975,1.3513,2760.5,2760.4,0.45474953]
[1646840926122,1.3513,2760.5,2760.4,0.35474953]
[1646840928281,0.445,2760.5,2760.4,0.35474953]
[1646840938990,1.8125116,2760.6,2760.4,0.35474953]
[1646840939190,0.48923758,2761.0,2760.4,0.35474953]
[1646840939191,0.90607,2760.9,2760.4,0.35474953]
[1646840939390,0.90607,2760.9,2760.4,0.30474953]
[1646840940222,1.99112183,2760.9,2760.4,0.30474953]
[1646840940826,0.19310787,2761.2,2760.6,0.029168]
[1646840941027,0.029168,2761.1,2760.4,0.30792006]
[1646840941225,0.00387476,2761.2,2760.5,0.07430451]
[1646840941426,1.45237285,2761.3,2760.4,0.30792006]
[1646840941729,0.00387511,2761.2,2760.4,0.30792006]
[1646840941927,0.94939492,2761.0,2760.4,0.30792006]
[1646840942335,0.90602,2761.1,2760.4,0.30792006]
[1646840942733,0.54641285,2761.3,2760.4,0.30792006]
[1646840942931,0.00387483,2761.2,2760.4,3.80792006]
[1646840943131,0.00387483,2761.2,2760.5,1.50052146]
[1646840943380,0.00387483,2761.2,2760.6,0.07773556]
[1646840943775,0.54641285,2761.3,2760.6,0.07773556]
[1646840943977,0.89646865,2761.0,2760.6,0.07773556]
[1646840944179,1.34146865,2761.0,2760.4,0.27875206]
[1646840944377,0.906178,2760.9,2760.4,0.27875206]
[1646840944577,0.445,2760.8,2760.4,0.27875206]
[1646840945182,1.0,2761.1,2760.4,0.27875206]
[1646840945676,0.00387469,2761.2,2760.5,1.50060474]
[1646840945876,0.00387469,2761.2,2760.6,0.07849635]
[1646840945877,0.90995349,2761.2,2760.6,0.07849635]
[1646840946077,1.2046329,2761.1,2760.4,0.27875206]
[1646840946676,1.2046329,2761.1,2760.5,1.50062646]
[1646840946876,1.2046329,2761.1,2760.6,0.07066248]
[1646840947126,1.81228,2761.0,2760.4,0.27875206]